fUSD/lending_fUSD_20250209
["ID","MTS","AMOUNT","RATE_DAILY","PERIOD"]
[352379124,1739068262202,-500.0,0.00010539,2]
[352379125,1739068262211,-500.0,0.00010539,2]
[352379126,1739068262221,-500.0,0.00010539,2]
[352379127,1739068262231,-500.0,0.00010539,2]
[352379128,1739068262241,-500.0,0.00010539,2]
[352379129,1739068262256,-500.0,0.00010539,2]
[352379130,1739068262267,-500.0,0.00010539,2]
[352379131,1739068262276,-500.0,0.00010539,2]
[352379132,1739068262286,-500.0,0.00010539,2]
[352379133,1739068262296,-500.0,0.00010539,2]
[352379134,1739068262306,-500.0,0.00010539,2]
[352379135,1739068262316,-785.18,0.00010547,2]
[352379136,1739068262327,-644.68,0.00010547,2]
[352379137,1739068262336,-646.35,0.00010547,2]
[352379138,1739068262347,-500.0,0.00010547,2]
[352379139,1739068262356,-1506.13,0.00010547,2]
[352379140,1739068262366,-1265.04,0.00010547,2]
[352379141,1739068262375,-500.0,0.00010547,2]
[352379142,1739068262385,-1598.62,0.00010547,2]
[352379143,1739068262394,-1741.99,0.00010547,2]
[352379144,1739068262403,-500.0,0.00010547,2]
[352379145,1739068262412,-500.0,0.00010547,2]
[352379146,1739068262421,-1264.68,0.00010547,2]
[352379147,1739068262431,-1332.83,0.00010547,2]
[352379148,1739068262441,-1408.8,0.00010547,2]
[352379149,1739068262450,-2329.97,0.00010547,2]
[352379150,1739068262459,-1536.78,0.00010547,2]
[352379151,1739068262469,-704.79,0.00010547,2]
[352379152,1739068262479,-329.97099313,0.00010547,2]
[352379153,1739068262488,-2199.8,0.00010547,2]
[352379154,1739068262497,-846.8,0.00010547,2]
[352379155,1739068262507,-500.0,0.00010547,2]
[352379156,1739068262517,-500.0,0.00010547,2]
[352379157,1739068262526,-500.0,0.00010547,2]
[352379158,1739068262535,-500.0,0.00010547,2]
[352379159,1739068262545,-540.53,0.00010547,2]
[352379160,1739068262555,-500.0,0.00010547,2]
[352379161,1739068262565,-726.76,0.00010547,2]
[352379162,1739068262575,-1126.43,0.00010547,2]
[352379163,1739068262584,-500.0,0.00010547,2]
[352379164,1739068262593,-500.0,0.00010547,2]
[352379165,1739068262603,-500.0,0.00010547,2]
[352379166,1739068262612,-500.0,0.00010547,2]
[352379167,1739068262622,-384.83,0.00010556,2]
[352379168,1739068262632,-207.94909976,0.00010574,2]
[352379169,1739068262642,-1037.37139682,0.00010574,2]
[352379170,1739068262653,-150.0,0.00010606,2]
[352379171,1739068262663,-150.0,0.00010616,2]
[352379172,1739068262676,-686.08,0.00010624,2]
[352379173,1739068262686,-151.41,0.00010628,2]
[352379174,1739068262697,-150.0,0.00010643,2]
[352379175,1739068262707,-150.0,0.00010663,2]
[352379176,1739068262718,-186.42473,0.00010665,2]
[352379177,1739068262729,-196.619842,0.00010665,2]
[352379178,1739068262739,-500.0,0.00010674,2]
[352379179,1739068262749,-500.0,0.00010674,2]
[352379180,1739068262759,-291.17580919,0.00010674,2]
[352379181,1739068262769,-500.0,0.00010674,2]
[352379182,1739068262778,-500.0,0.00010674,2]
[352379183,1739068262788,-500.0,0.00010674,2]
[352379184,1739068262797,-523.99852913,0.00010674,2]
[352379185,1739068262807,-500.0,0.00010674,2]
[352379186,1739068262817,-407.09655308,0.00010674,2]
[352379187,1739068262826,-500.0,0.00010674,2]
[352379188,1739068262835,-287.74954525,0.00010674,2]
[352379189,1739068262846,-500.0,0.00010674,2]
[352379190,1739068262858,-500.0,0.00010674,2]
[352379191,1739068262868,-500.0,0.00010674,2]
[352379192,1739068262878,-500.0,0.00010674,2]
[352379193,1739068262890,-500.0,0.00010674,2]
[352379194,1739068262900,-500.0,0.00010674,2]
[352379195,1739068262910,-332.25181456,0.00010674,2]
[352379196,1739068262919,-267.30167397,0.00010674,2]
[352379197,1739068262929,-500.0,0.00010674,2]
[352379198,1739068262938,-500.0,0.00010674,2]
[352379199,1739068262949,-500.0,0.00010674,2]
[352379200,1739068262959,-500.0,0.00010674,2]
[352379201,1739068262968,-500.0,0.00010674,2]
[352379202,1739068262978,-500.0,0.00010674,2]
[352379203,1739068262987,-500.0,0.00010674,2]
[352379204,1739068262997,-500.0,0.00010674,2]
[352379205,1739068263006,-500.0,0.00010674,2]
[352379206,1739068263015,-500.0,0.00010674,2]
[352379207,1739068263025,-161.37624289,0.00010674,2]
[352379208,1739068263035,-500.0,0.00010674,2]
[352379209,1739068263045,-510.35828515,0.00010674,2]
[352379210,1739068263055,-507.00033245,0.00010674,2]
[352379211,1739068263065,-500.0,0.00010674,2]
[352379212,1739068263074,-500.0,0.00010674,2]
[352379213,1739068263083,-509.77175885,0.00010674,2]
[352379214,1739068263093,-500.0,0.00010674,2]
[352379215,1739068263102,-500.0,0.00010674,2]
[352379216,1739068263112,-362.41267608,0.00010674,2]
[352379217,1739068263121,-451.3020124,0.00010674,2]
[352379218,1739068263131,-500.0,0.00010674,2]
[352379219,1739068263140,-500.0,0.00010674,2]
[352379220,1739068263149,-500.0,0.00010674,2]
[352379221,1739068263159,-354.48854155,0.00010674,2]
[352379222,1739068263168,-500.0,0.00010674,2]
[352379223,1739068263177,-500.0,0.00010674,2]
[352379224,1739068263186,-500.0,0.00010674,2]
[352379225,1739068263196,-500.0,0.00010674,2]
[352379226,1739068263205,-500.0,0.00010674,2]
[352379227,1739068263214,-366.0560832,0.00010674,2]
[352379228,1739068263224,-500.0,0.00010674,2]
[352379229,1739068263233,-510.87641973,0.00010674,2]
[352379230,1739068263243,-500.0,0.00010674,2]
[352379231,1739068263252,-500.0,0.00010674,2]
[352379232,1739068263262,-508.83663644,0.00010674,2]
[352379233,1739068263272,-500.0,0.00010674,2]
[352379234,1739068263283,-500.0,0.00010674,2]
[352379235,1739068263293,-500.0,0.00010674,2]
[352379236,1739068263303,-500.0,0.00010674,2]
[352379237,1739068263312,-537.56493582,0.00010674,2]
[352379238,1739068263322,-500.0,0.00010674,2]
[352379239,1739068263332,-500.0,0.00010674,2]
[352379240,1739068263342,-500.0,0.00010674,2]
[352379241,1739068263351,-508.02172094,0.00010674,2]
[352379242,1739068263360,-514.68528127,0.00010674,2]
[352379243,1739068263370,-500.0,0.00010674,2]
[352379244,1739068263379,-500.0,0.00010674,2]
[352379245,1739068263389,-500.0,0.00010674,2]
[352379246,1739068263398,-500.0,0.00010674,2]
[352379247,1739068263407,-500.0,0.00010674,2]
[352379248,1739068263417,-500.0,0.00010674,2]
[352379249,1739068263426,-500.0,0.00010674,2]
[352379250,1739068263435,-500.0,0.00010674,2]
[352379251,1739068263445,-500.0,0.00010674,2]
[352379252,1739068263454,-500.0,0.00010674,2]
[352379253,1739068263464,-500.0,0.00010674,2]
[352379254,1739068263473,-500.0,0.00010674,2]
[352379255,1739068263482,-199.11,0.00010674,2]
[352379256,1739068263492,-500.0,0.00010674,2]
[352379257,1739068263502,-500.0,0.00010674,2]
[352379258,1739068263511,-500.0,0.00010674,2]
[352379259,1739068263521,-500.0,0.00010674,2]
[352379260,1739068263531,-500.0,0.00010674,2]
[352379261,1739068263540,-500.0,0.00010674,2]
[352379262,1739068263550,-344.79255506,0.00010674,2]
[352379263,1739068263560,-500.0,0.00010674,2]
[352379264,1739068263569,-500.0,0.00010674,2]
[352379265,1739068263579,-500.0,0.00010674,2]
[352379266,1739068263588,-500.0,0.00010674,2]
[352379267,1739068263598,-500.0,0.00010674,2]
[352379268,1739068263607,-500.0,0.00010674,2]
[352379269,1739068263616,-500.0,0.00010674,2]
[352379270,1739068263626,-500.0,0.00010674,2]
[352379271,1739068263635,-500.0,0.00010674,2]
[352379272,1739068263647,-500.0,0.00010674,2]
[352379273,1739068263656,-500.0,0.00010674,2]
[352379274,1739068263666,-500.0,0.00010674,2]
[352379275,1739068263676,-500.0,0.00010674,2]
[352379276,1739068263686,-500.0,0.00010674,2]
[352379277,1739068263695,-500.0,0.00010674,2]
[352379278,1739068263705,-500.0,0.00010674,2]
[352379279,1739068263715,-500.0,0.00010674,2]
[352379280,1739068263726,-500.0,0.00010674,2]
[352379281,1739068263736,-500.0,0.00010674,2]
[352379282,1739068263746,-1039.13,0.00010674,2]
[352379283,1739068263756,-587.15937929,0.00010674,2]
[352379284,1739068263765,-500.0,0.00010674,2]
[352379285,1739068263776,-1045.67,0.00010674,2]
[352379286,1739068263786,-500.0,0.00010674,2]
[352379287,1739068263797,-2505.02,0.00010674,2]
[352379288,1739068263808,-500.0,0.00010674,2]
[352379289,1739068263818,-500.0,0.00010674,2]
[352379290,1739068263828,-500.0,0.00010674,2]
[352379291,1739068263838,-785.35,0.00010674,2]
[352379292,1739068263851,-500.0,0.00010674,2]
[352379293,1739068263861,-1090.29,0.00010674,2]
[352379294,1739068263871,-578.90179708,0.00010674,2]
[352379295,1739068263882,-500.0,0.00010674,2]
[352379296,1739068263892,-1345.79,0.00010674,2]
[352379297,1739068263902,-500.0,0.00010674,2]
[352379298,1739068263912,-500.0,0.00010674,2]
[352379299,1739068263922,-1000.0,0.00010674,2]
[352379300,1739068263933,-969.66,0.00010674,2]
[352379301,1739068263943,-500.0,0.00010674,2]
[352379302,1739068263954,-500.0,0.00010674,2]
[352379303,1739068263963,-500.0,0.00010674,2]
[352379304,1739068263973,-500.0,0.00010674,2]
[352379305,1739068263987,-1750.99,0.00010674,2]
[352379306,1739068263997,-500.0,0.00010674,2]
[352379307,1739068264007,-500.0,0.00010674,2]
[352379308,1739068264018,-1987.42,0.00010674,2]
[352379309,1739068264028,-500.0,0.00010674,2]
[352379310,1739068264039,-500.0,0.00010674,2]
[352379311,1739068264049,-500.0,0.00010674,2]
[352379312,1739068264058,-500.0,0.00010674,2]
[352379313,1739068264068,-500.0,0.00010674,2]
[352379314,1739068264078,-500.0,0.00010674,2]
[352379315,1739068264088,-500.0,0.00010674,2]
[352379316,1739068264098,-500.0,0.00010674,2]
[352379317,1739068264108,-500.0,0.00010674,2]
[352379318,1739068264118,-500.0,0.00010674,2]
[352379319,1739068264128,-500.0,0.00010674,2]
[352379320,1739068264138,-500.0,0.00010674,2]
[352379321,1739068264148,-500.0,0.00010674,2]
[352379322,1739068264159,-500.0,0.00010674,2]
[352379323,1739068264169,-500.0,0.00010674,2]
[352379324,1739068264179,-500.0,0.00010674,2]
[352379325,1739068264189,-500.0,0.00010674,2]
[352379326,1739068264199,-506.51360275,0.00010674,2]
[352379327,1739068264208,-500.0,0.00010674,2]
[352379328,1739068264218,-506.8521286,0.00010674,2]
[352379329,1739068264228,-500.0,0.00010674,2]
[352379330,1739068264237,-500.0,0.00010674,2]
[352379331,1739068264247,-500.0,0.00010675,2]
[352379332,1739068264257,-500.0,0.00010675,2]
[352379333,1739068264266,-500.0,0.00010675,2]
[352379334,1739068264277,-500.0,0.00010675,2]
[352379335,1739068264287,-500.0,0.00010675,2]
[352379336,1739068264297,-500.0,0.00010675,2]
[352379337,1739068264306,-500.0,0.00010675,2]
[352379338,1739068264316,-500.0,0.00010675,2]
[352379339,1739068264326,-500.0,0.00010675,2]
[352379340,1739068264336,-687.79,0.00010675,2]
[352379341,1739068264346,-500.0,0.00010675,2]
[352379342,1739068264356,-323.35605506,0.00010675,2]
[352379343,1739068264529,-500.0,0.00010675,2]
[352379344,1739068264550,-500.0,0.00010675,2]
[352379345,1739068264560,-500.0,0.00010675,2]
[352379346,1739068264570,-500.0,0.00010675,2]
[352379347,1739068264579,-527.70933806,0.00010675,2]
[352379348,1739068264589,-500.0,0.00010675,2]
[352379349,1739068264598,-500.0,0.00010675,2]
[352379350,1739068264608,-500.0,0.00010675,2]
[352379351,1739068264618,-940.52,0.00010675,2]
[352379352,1739068264627,-500.0,0.00010675,2]
[352379353,1739068264637,-500.0,0.00010675,2]
[352379354,1739068264647,-500.0,0.00010675,2]
[352379355,1739068264656,-572.54,0.00010675,2]
[352379356,1739068264665,-500.0,0.00010675,2]
[352379357,1739068264674,-500.0,0.00010675,2]
[352379358,1739068264684,-500.0,0.00010675,2]
[352379359,1739068264693,-500.0,0.00010675,2]
[352379360,1739068264703,-713.14,0.00010675,2]
[352379361,1739068264712,-500.0,0.00010675,2]
[352379362,1739068264722,-789.17,0.00010675,2]
[352379363,1739068264731,-500.0,0.00010675,2]
[352379364,1739068264741,-500.0,0.00010675,2]
[352379365,1739068264751,-500.0,0.00010675,2]
[352379366,1739068264760,-500.0,0.00010675,2]
[352379367,1739068264770,-500.0,0.00010675,2]
[352379368,1739068264779,-500.0,0.00010675,2]
[352379369,1739068264789,-500.0,0.00010675,2]
[352379370,1739068264798,-388.66462566,0.00010675,2]
[352379371,1739068264808,-500.0,0.00010675,2]
[352379372,1739068264817,-500.0,0.00010675,2]
[352379373,1739068264827,-500.0,0.00010675,2]
[352379374,1739068264837,-500.0,0.00010675,2]
[352379375,1739068264847,-604.29,0.00010675,2]
[352379376,1739068264858,-500.0,0.00010675,2]
[352379377,1739068264867,-500.0,0.00010675,2]
[352379378,1739068264877,-500.0,0.00010675,2]
[352379379,1739068264887,-796.85,0.00010675,2]
[352379380,1739068264896,-500.0,0.00010675,2]
[352379381,1739068264905,-704.0,0.00010675,2]
[352379382,1739068264915,-500.0,0.00010675,2]
[352379383,1739068264928,-500.0,0.00010675,2]
[352379384,1739068264937,-500.0,0.00010675,2]
[352379385,1739068264947,-855.137713,0.00010675,2]
[352379386,1739068264956,-878.2,0.00010675,2]
[352379387,1739068264965,-965.48681,0.00010675,2]
[352379388,1739068264975,-500.0,0.00010675,2]
[352379389,1739068264985,-500.0,0.00010675,2]
[352379390,1739068264995,-500.0,0.00010675,2]
[352379391,1739068265004,-500.0,0.00010675,2]
[352379392,1739068265013,-500.0,0.00010675,2]
[352379393,1739068265023,-500.0,0.00010675,2]
[352379394,1739068265033,-500.0,0.00010675,2]
[352379395,1739068265042,-500.0,0.00010675,2]
[352379396,1739068265052,-500.0,0.00010675,2]
[352379397,1739068265062,-500.0,0.00010675,2]
[352379398,1739068265072,-500.0,0.00010675,2]
[352379399,1739068265082,-502.45,0.00010675,2]
[352379400,1739068265092,-500.0,0.00010675,2]
[352379401,1739068265102,-906.91,0.00010675,2]
[352379402,1739068265111,-500.0,0.00010675,2]
[352379403,1739068265121,-520.73,0.00010675,2]
[352379404,1739068265131,-500.0,0.00010675,2]
[352379405,1739068265141,-862.92,0.00010675,2]
[352379406,1739068265151,-850.75,0.00010675,2]
[352379407,1739068265160,-500.0,0.00010675,2]
[352379408,1739068265170,-500.0,0.00010675,2]
[352379409,1739068265180,-632.29,0.00010675,2]
[352379410,1739068265189,-867.75,0.00010675,2]
[352379411,1739068265199,-500.0,0.00010675,2]
[352379412,1739068265210,-500.0,0.00010675,2]
[352379413,1739068265220,-500.0,0.00010675,2]
[352379414,1739068265230,-500.0,0.00010675,2]
[352379415,1739068265239,-500.0,0.00010675,2]
[352379416,1739068265253,-657.74,0.00010675,2]
[352379417,1739068265262,-950.5,0.00010675,2]
[352379418,1739068265273,-500.0,0.00010675,2]
[352379419,1739068265282,-796.41,0.00010675,2]
[352379420,1739068265292,-500.0,0.00010675,2]
[352379421,1739068265302,-500.0,0.00010675,2]
[352379422,1739068265311,-500.0,0.00010675,2]
[352379423,1739068265321,-500.0,0.00010675,2]
[352379424,1739068265331,-500.0,0.00010675,2]
[352379425,1739068265340,-789.95,0.00010675,2]
[352379426,1739068265350,-500.0,0.00010675,2]
[352379427,1739068265359,-500.0,0.00010675,2]
[352379428,1739068265373,-500.0,0.00010675,2]
[352379429,1739068265383,-500.0,0.00010675,2]
[352379430,1739068265393,-500.0,0.00010675,2]
[352379431,1739068265403,-770.81,0.00010675,2]
[352379432,1739068265412,-1974.36,0.00010675,2]
[352379433,1739068265422,-796.4,0.00010675,2]
[352379434,1739068265432,-594.33,0.00010675,2]
[352379435,1739068265442,-713.04,0.00010675,2]
[352379436,1739068265452,-500.0,0.00010675,2]
[352379437,1739068265462,-500.0,0.00010675,2]
[352379438,1739068265473,-551.13,0.00010675,2]
[352379439,1739068265483,-1895.12,0.00010675,2]
[352379440,1739068265494,-525.89,0.00010675,2]
[352379441,1739068265504,-500.0,0.00010675,2]
[352379442,1739068265513,-2888.1,0.00010675,2]
[352379443,1739068265524,-500.0,0.00010675,2]
[352379444,1739068265534,-1057.6,0.00010675,2]
[352379445,1739068265543,-1387.64,0.00010675,2]
[352379446,1739068265552,-500.0,0.00010675,2]
[352379447,1739068265563,-514.0,0.00010675,2]
[352379448,1739068265573,-1501.18,0.00010675,2]
[352379449,1739068265583,-1053.58,0.00010675,2]
[352379450,1739068265593,-514.54,0.00010675,2]
[352379451,1739068265603,-768.56,0.00010675,2]
[352379452,1739068265613,-535.07,0.00010675,2]
[352379453,1739068265623,-680.69,0.00010675,2]
[352379454,1739068265632,-500.0,0.00010675,2]
[352379455,1739068265642,-1231.64,0.00010675,2]
[352379456,1739068265652,-2192.35,0.00010675,2]
[352379457,1739068265662,-586.73,0.00010675,2]
[352379458,1739068265672,-500.0,0.00010675,2]
[352379459,1739068265681,-1046.17,0.00010675,2]
[352379460,1739068265691,-1813.69,0.00010675,2]
[352379461,1739068265701,-500.0,0.00010675,2]
[352379462,1739068265711,-1640.37,0.00010675,2]
[352379463,1739068265721,-669.76,0.00010675,2]
[352379464,1739068265731,-500.0,0.00010675,2]
[352379465,1739068265741,-912.52,0.00010675,2]
[352379466,1739068265750,-1735.55,0.00010675,2]
[352379467,1739068265760,-500.0,0.00010675,2]
[352379468,1739068265771,-500.0,0.00010675,2]
[352379469,1739068265780,-500.0,0.00010675,2]
[352379470,1739068265791,-1516.41,0.00010675,2]
[352379471,1739068265800,-1011.36,0.00010675,2]
[352379472,1739068265810,-500.0,0.00010675,2]
[352379473,1739068265819,-1292.34,0.00010675,2]
[352379474,1739068265829,-500.0,0.00010675,2]
[352379475,1739068265839,-1086.04,0.00010675,2]
[352379476,1739068265852,-500.0,0.00010675,2]
[352379477,1739068265863,-500.0,0.00010675,2]
[352379478,1739068265873,-788.32,0.00010675,2]
[352379479,1739068265883,-1813.88,0.00010675,2]
[352379480,1739068265894,-2183.54,0.00010675,2]
[352379481,1739068265904,-500.0,0.00010675,2]
[352379482,1739068265914,-798.61,0.00010675,2]
[352379483,1739068265927,-1408.01,0.00010675,2]
[352379484,1739068265937,-500.0,0.00010675,2]
[352379485,1739068265947,-678.49,0.00010675,2]
[352379486,1739068265958,-500.0,0.00010675,2]
[352379487,1739068265968,-1409.7,0.00010675,2]
[352379488,1739068265984,-967.29,0.00010675,2]
[352379489,1739068265994,-500.0,0.00010675,2]
[352379490,1739068266005,-645.64,0.00010675,2]
[352379491,1739068266015,-695.06,0.00010675,2]
[352379492,1739068266025,-500.0,0.00010675,2]
[352379493,1739068266035,-951.2,0.00010675,2]
[352379494,1739068266044,-1002.71,0.00010675,2]
[352379495,1739068266054,-500.0,0.00010675,2]
[352379496,1739068266063,-1894.78,0.00010675,2]
[352379497,1739068266072,-505.10374659,0.00010675,2]
[352379498,1739068266082,-2146.73,0.00010675,2]
[352379499,1739068266091,-1508.57,0.00010675,2]
[352379500,1739068266101,-3646.49,0.00010675,2]
[352379501,1739068266111,-735.05,0.00010675,2]
[352379502,1739068266120,-500.0,0.00010675,2]
[352379503,1739068266129,-2412.9,0.00010675,2]
[352379504,1739068266139,-749.05,0.00010675,2]
[352379505,1739068266149,-1730.37,0.00010675,2]
[352379506,1739068266159,-984.54,0.00010675,2]
[352379507,1739068266169,-500.0,0.00010675,2]
[352379508,1739068266179,-2918.7,0.00010675,2]
[352379509,1739068266188,-500.0,0.00010675,2]
[352379510,1739068266199,-988.0,0.00010675,2]
[352379511,1739068266210,-967.87,0.00010675,2]
[352379512,1739068266219,-500.0,0.00010675,2]
[352379513,1739068266228,-500.0,0.00010675,2]
[352379514,1739068266239,-500.0,0.00010675,2]
[352379515,1739068266249,-500.0,0.00010675,2]
[352379516,1739068266259,-509.19,0.00010675,2]
[352379517,1739068266270,-500.0,0.00010675,2]
[352379518,1739068266280,-638.52,0.00010675,2]
[352379519,1739068266289,-1138.87,0.00010675,2]
[352379520,1739068266299,-570.46,0.00010675,2]
[352379521,1739068266308,-1633.4,0.00010675,2]
[352379522,1739068266318,-803.83,0.00010675,2]
[352379523,1739068266328,-500.0,0.00010675,2]
[352379524,1739068266337,-500.0,0.00010675,2]
[352379525,1739068266347,-500.0,0.00010675,2]
[352379526,1739068266358,-500.0,0.00010675,2]
[352379527,1739068266367,-1288.74,0.00010675,2]
[352379528,1739068266377,-1711.72,0.00010675,2]
[352379529,1739068266387,-1257.42,0.00010675,2]
[352379530,1739068266397,-500.0,0.00010675,2]
[352379531,1739068266406,-1369.94,0.00010675,2]
[352379532,1739068266416,-633.01,0.00010675,2]
[352379533,1739068266425,-1214.08,0.00010675,2]
[352379534,1739068266435,-630.24,0.00010675,2]
[352379535,1739068266445,-548.7,0.00010675,2]
[352379536,1739068266456,-1405.68,0.00010675,2]
[352379537,1739068266466,-500.0,0.00010675,2]
[352379538,1739068266477,-1452.51,0.00010675,2]
[352379539,1739068266487,-1705.78,0.00010675,2]
[352379540,1739068266497,-500.0,0.00010675,2]
[352379541,1739068266507,-621.33,0.00010675,2]
[352379542,1739068266518,-1951.52,0.00010675,2]
[352379543,1739068266528,-603.4,0.00010675,2]
[352379544,1739068266538,-497.91096649,0.00010675,2]
[352379545,1739068266548,-500.0,0.00010675,2]
[352379546,1739068266558,-500.0,0.00010675,2]
[352379547,1739068266569,-2275.81,0.00010675,2]
[352379548,1739068266579,-500.0,0.00010675,2]
[352379549,1739068266589,-1151.28,0.00010675,2]
[352379550,1739068266599,-500.0,0.00010675,2]
[352379551,1739068266609,-5115.12,0.00010675,2]
[352379552,1739068266620,-500.0,0.00010675,2]
[352379553,1739068266629,-500.0,0.00010675,2]
[352379554,1739068266639,-527.8398877,0.00010676,2]
[352379555,1739068266649,-500.0,0.00010676,2]
[352379556,1739068266660,-500.0,0.00010676,2]
[352379557,1739068266671,-508.05250245,0.00010676,2]
[352379558,1739068266681,-500.0,0.00010676,2]
[352379559,1739068266692,-500.0,0.00010676,2]
[352379560,1739068266703,-500.0,0.00010676,2]
[352379561,1739068266713,-500.0,0.00010676,2]
[352379562,1739068266723,-500.0,0.00010676,2]
[352379563,1739068266733,-500.0,0.00010676,2]
[352379564,1739068266743,-500.0,0.00010676,2]
[352379565,1739068266753,-500.0,0.00010676,2]
[352379566,1739068266763,-500.0,0.00010676,2]
[352379567,1739068266774,-500.0,0.00010676,2]
[352379568,1739068266784,-500.0,0.00010676,2]
[352379569,1739068266793,-500.0,0.00010676,2]
[352379570,1739068266803,-500.0,0.00010676,2]
[352379571,1739068266813,-500.0,0.00010676,2]
[352379572,1739068266822,-500.0,0.00010676,2]
[352379573,1739068266832,-500.0,0.00010676,2]
[352379574,1739068266842,-500.0,0.00010676,2]
[352379575,1739068266856,-500.0,0.00010676,2]
[352379576,1739068266866,-500.0,0.00010676,2]
[352379577,1739068266875,-500.0,0.00010676,2]
[352379578,1739068266885,-500.0,0.00010676,2]
[352379579,1739068266895,-500.0,0.00010676,2]
[352379580,1739068266905,-150.0,0.00010683,2]
[352379581,1739068266915,-785.18,0.00010684,2]
[352379582,1739068266927,-644.68,0.00010684,2]
[352379583,1739068266937,-646.35,0.00010684,2]
[352379584,1739068266946,-500.0,0.00010684,2]
[352379585,1739068266955,-1506.13,0.00010684,2]
[352379586,1739068266965,-1265.04,0.00010684,2]
[352379587,1739068267026,-1598.62,0.00010684,2]
[352379588,1739068267036,-1741.99,0.00010684,2]
[352379589,1739068267046,-500.0,0.00010684,2]
[352379590,1739068267055,-500.0,0.00010684,2]
[352379591,1739068267065,-1264.68,0.00010684,2]
[352379592,1739068267074,-1332.83,0.00010684,2]
[352379593,1739068267084,-1408.8,0.00010684,2]
[352379594,1739068267093,-2329.97,0.00010684,2]
[352379595,1739068267103,-1536.78,0.00010684,2]
[352379596,1739068267113,-704.79,0.00010684,2]
[352379597,1739068267122,-2199.8,0.00010684,2]
[352379598,1739068267132,-846.8,0.00010684,2]
[352379599,1739068267142,-500.0,0.00010684,2]
[352379600,1739068267152,-500.0,0.00010684,2]
[352379601,1739068267162,-514.89916602,0.00010684,2]
[352379602,1739068267172,-500.0,0.00010684,2]
[352379603,1739068267182,-540.53,0.00010684,2]
[352379604,1739068267192,-500.0,0.00010684,2]
[352379605,1739068267202,-726.76,0.00010684,2]
[352379606,1739068267212,-1126.43,0.00010684,2]
[352379607,1739068267223,-500.0,0.00010684,2]
[352379608,1739068267232,-500.0,0.00010684,2]
[352379609,1739068267242,-500.0,0.00010684,2]
[352379610,1739068267252,-500.0,0.00010684,2]
[352379611,1739068267262,-150.0,0.00010694,2]
[352379612,1739068267273,-150.0,0.00010696,2]
[352379613,1739068267283,-150.0,0.00010714,2]
[352379614,1739068267294,-426.38955346,0.00010718,2]
[352379615,1739068267304,-150.0,0.0001072,2]
[352379616,1739068267314,-150.0,0.00010721,2]
[352379617,1739068267323,-150.0,0.00010786,2]
[352379618,1739068267334,-2000.0,0.000108,3]
[352379619,1739068267343,-510.27248189,0.00010811,2]
[352379620,1739068267352,-500.0,0.00010811,2]
[352379621,1739068267362,-500.0,0.00010811,2]
[352379622,1739068267371,-500.0,0.00010811,2]
[352379623,1739068267381,-500.0,0.00010811,2]